bitfinex-derivatives/quotes_ETHF0:USTF0_20250317
["timestamp","ask_amount","ask_price","bid_price","bid_amount"]
[1742232732889,49.8989256,1925.2,1925.1,1.3399]
[1742232733797,3.2078,1925.2,1925.1,2.37889]
[1742232734900,4.24673,1925.2,1925.1,1.3399]
[1742232735301,4.90673,1925.2,1925.1,1.3399]
[1742232736902,5.61763,1925.2,1925.1,1.3399]
[1742232737102,5.70292774,1925.2,1925.1,1.3399]
[1742232737303,7.08982774,1925.2,1925.1,1.3399]
[1742232738004,5.9656,1925.2,1924.7,1.75477]
[1742232738200,5.61499,1925.1,1925.0,1.402]
[1742232738401,9.05899,1925.1,1925.0,1.402]
[1742232738697,49.85899,1925.1,1925.0,1.402]
[1742232740396,1.03915,1924.8,1924.7,1.75478]
[1742232740602,1.03915,1924.8,1924.7,0.7156]
[1742232741300,1.03926,1924.6,1924.5,5.966]
[1742232741603,4.24706,1924.6,1924.5,5.966]
[1742232741991,3.2078,1924.6,1924.4,1.4278]
[1742232742305,1.3138,1924.5,1924.3,0.72160376]
[1742232742504,3.2078,1924.6,1924.5,1.03931]
[1742232743190,4.24686,1925.0,1924.8,1.03915]
[1742232743394,4.24684,1925.0,1924.9,1.71649]
[1742232743593,4.24684,1925.0,1924.9,0.6774]
[1742232744296,3.2078,1925.0,1924.7,1.75297]
[1742232744492,1.03915,1924.8,1924.7,2.41747]
[1742232744695,2.43742,1924.9,1924.7,1.3783]
[1742232744900,1.03915,1924.8,1924.7,1.3783]
[1742232745109,5.64525,1924.8,1924.7,1.3783]
[1742232746804,4.6061,1924.8,1924.7,2.4175]
[1742232747004,3.2078,1924.8,1924.7,2.4175]
[1742232747207,3.444,1924.9,1924.8,1.03915]
[1742232747504,4.24687,1925.0,1924.8,1.03915]
[1742232747708,1.03909,1924.9,1924.8,1.03915]
[1742232748208,5.68028,1925.0,1924.8,1.03915]
[1742232748408,4.6412,1925.0,1924.8,1.03915]
[1742232748600,1.03909,1924.9,1924.8,1.03915]
[1742232748908,1.03909,1924.9,1924.7,2.41746]
[1742232749207,4.24695,1924.8,1924.7,1.3783]
[1742232749407,1.0392,1924.7,1924.6,1.03921]
[1742232749705,2.4726,1924.7,1924.5,1.03928]
[1742232749901,2.4726,1924.7,1924.6,1.03926]
[1742232750106,4.24698,1924.8,1924.6,1.03926]
[1742232750302,5.84114,1924.9,1924.8,1.03915]
[1742232750608,5.17854,1924.9,1924.5,2.59825]
[1742232750803,2.36027,1925.0,1924.6,2.59814]
[1742232751005,3.2078,1925.1,1925.0,1.03904]
[1742232751196,3.2078,1925.1,1924.9,1.03905]
[1742232751402,4.24679,1925.1,1925.0,1.69824]
[1742232751708,3.2078,1925.1,1925.0,1.69824]
[1742232751908,4.24679,1925.1,1925.0,1.69824]
[1742232752604,5.56799,1925.1,1925.0,0.6592]
[1742232753603,5.56799,1925.1,1925.0,1.69824]
[1742232754010,2.36019,1925.1,1925.0,1.69824]
[1742232754210,5.56799,1925.1,1925.0,0.6592]
[1742232754405,2.36019,1925.1,1925.0,0.6592]
[1742232754608,2.36019,1925.1,1925.0,1.69824]
[1742232754802,1.3212,1925.1,1925.0,1.69824]
[1742232756110,40.8,1925.2,1925.1,1.03899]
[1742232756406,3.21560376,1925.5,1925.1,1.309]
[1742232756606,0.00780376,1925.5,1925.4,1.03882]
[1742232757212,0.00780376,1925.5,1925.4,1.72212]
[1742232758814,0.00780376,1925.5,1925.4,3.03112]
[1742232759111,40.8,1925.7,1925.4,3.03112]
[1742232759112,40.8,1925.7,1925.6,1.03872]
[1742232759316,41.83869,1925.7,1925.5,2.40124]
[1742232759617,2.48269,1925.7,1925.6,1.3625]
[1742232759804,7.3185,1925.9,1925.6,1.3625]
[1742232760004,7.3185,1925.9,1925.8,1.03861]
[1742232760201,4.1959565,1925.9,1925.8,1.03861]
[1742232760408,4.11850376,1925.9,1925.8,1.03861]
[1742232760608,0.00780376,1925.9,1925.8,3.10941]
[1742232762317,0.00780376,1925.9,1925.8,2.0708]
[1742232762507,0.00780376,1925.9,1925.8,3.10941]
[1742232769718,7.353,1926.3,1926.2,1.03839]
[1742232769912,7.353,1926.3,1925.9,2.59631]
[1742232769913,8.8018,1926.3,1926.1,1.03841]
[1742232770215,3.2078,1926.5,1926.1,3.2078]
[1742232770416,4.6566,1926.5,1926.3,1.03834]
[1742232770617,45.4566,1926.5,1926.4,1.4098]
[1742232771008,46.49483,1926.5,1926.4,1.4098]
[1742232771213,45.4566,1926.5,1926.4,1.4098]
[1742232771711,3.2078,1926.5,1926.4,2.44808]
[1742232771911,0.85277376,1926.6,1926.5,1.03823]
[1742232772114,0.85277376,1926.6,1926.5,2.39483]
[1742232772418,1.89095376,1926.6,1926.5,1.3566]
[1742232772713,0.85277376,1926.6,1926.5,2.39483]
[1742232776016,2.20207376,1926.6,1926.5,2.39483]
[1742232776223,0.85277376,1926.6,1926.5,2.39483]
[1742232778224,1.89095376,1926.6,1926.5,2.39483]
[1742232778420,0.85277376,1926.6,1926.5,2.39483]
[1742232779527,1.89095376,1926.6,1926.5,2.39483]
[1742232779729,1.89095376,1926.6,1926.5,1.3566]
[1742232780217,1.89095376,1926.6,1926.3,4.4793]
[1742232780218,2.18567376,1926.6,1926.3,4.4793]
[1742232780424,6.23895,1926.5,1926.4,1.4273]
[1742232780823,47.03895,1926.5,1926.4,1.4273]
[1742232781320,1.89098376,1926.6,1926.4,1.4273]
[1742232781522,0.85277376,1926.6,1926.5,1.03823]
[1742232782026,0.85277376,1926.6,1926.5,4.47923]
[1742232785221,0.85277376,1926.6,1926.5,5.20303]
[1742232785620,2.16847376,1926.6,1926.5,5.20303]
[1742232788121,0.85277376,1926.6,1926.5,5.20303]
[1742232788624,0.85277376,1926.6,1926.5,6.60043]
[1742232791327,0.01342934,1927.0,1926.9,1.03801]
[1742232791833,1.05138934,1927.0,1926.9,1.03801]
[1742232792128,0.01342934,1927.0,1926.9,5.85591]
[1742232792319,0.01342934,1927.0,1926.9,15.02971]
[1742232792627,0.01342934,1927.0,1926.9,17.52971]
[1742232792931,0.01342934,1927.0,1926.9,15.02971]
[1742232793128,0.01342934,1927.0,1926.9,11.82191]
[1742232793324,0.01342934,1927.0,1926.9,17.52971]
[1742232793525,1.0,1928.0,1927.9,1.03748]
[1742232793729,1.0,1928.0,1927.7,2.59391]
[1742232793730,1.0,1928.0,1927.7,3.2078]
[1742232794028,1.0,1928.0,1927.9,1.03748]
[1742232794429,1.03748,1927.9,1927.8,1.3076]
[1742232794619,1.4493,1927.9,1927.8,2.34513]
[1742232794819,2.48678,1927.9,1927.8,2.34513]
[1742232795019,1.4493,1927.9,1927.8,2.34513]
[1742232795632,1.03748,1927.9,1927.8,2.34509]
[1742232795823,2.4493,1928.0,1927.8,2.34509]
[1742232796119,1.353,1927.9,1927.8,1.03749]
[1742232798231,1.353,1927.9,1927.7,5.22265]
[1742232798433,2.39051,1927.9,1927.7,3.463]
[1742232798927,2.39051,1927.9,1927.8,1.03753]
[1742232799129,2.59383,1927.8,1927.3,5.16508]
[1742232799328,1.03772,1927.5,1927.3,1.70908]
[1742232799533,1.0378,1927.3,1927.2,3.456]
[1742232799835,1.0378,1927.3,1927.2,4.49385]
[1742232800033,1.0378,1927.3,1927.2,3.456]
[1742232800531,1.03778,1927.4,1927.2,4.49385]
[1742232800725,2.4871,1927.3,1927.2,3.456]
[1742232800924,1.4493,1927.3,1927.2,4.49385]
[1742232801232,1.03774,1927.5,1927.2,3.456]
[1742232801431,2.48704,1927.5,1927.4,1.03775]
[1742232801633,1.4493,1927.5,1927.4,1.03775]
[1742232803034,1.4493,1927.5,1927.4,4.24555]
[1742232804434,1.4493,1927.5,1927.4,1.03775]
[1742232805422,2.4241,1927.7,1927.6,1.03764]
[1742232805736,2.8073,1927.7,1927.6,1.03764]
[1742232806028,3.84488,1927.7,1927.6,1.03764]
[1742232806441,2.8073,1927.7,1927.6,1.03764]
[1742232807037,2.8073,1927.7,1927.6,4.24544]
[1742232807229,1.0,1928.0,1927.9,1.03748]
[1742232808129,0.07905138,1928.2,1928.1,1.03737]
[1742232808441,0.40961952,1929.9,1928.5,3.2078]
[1742232808641,5.848,1930.1,1929.8,3.2078]
[1742232808642,0.09027507,1930.1,1929.8,3.2078]
[1742232808829,0.38318979,1930.9,1930.2,3.2078]
[1742232809029,1.03586,1930.9,1930.8,3.2078]
[1742232809231,1.3647,1930.9,1930.8,0.42101165]
[1742232809431,3.2078,1931.1,1930.7,1.03592]
[1742232809736,9.7735,1931.1,1930.5,6.8938]
[1742232809946,1.3647,1931.1,1930.5,6.8938]
[1742232810135,1.3647,1931.1,1930.7,1.03592]
[1742232810441,1.3647,1931.1,1930.4,0.00778311]
[1742232810442,3.2078,1930.8,1930.4,0.00778311]
[1742232810640,3.2078,1930.8,1929.8,3.2078]
[1742232810641,3.2078,1930.5,1929.8,3.716]
[1742232810941,3.2078,1930.2,1929.6,3.2078]
[1742232811144,2.6998,1930.7,1929.6,3.2078]
[1742232811145,3.875,1930.7,1929.8,3.2078]
[1742232811439,3.2078,1931.3,1930.4,3.2078]
[1742232811629,0.7215,1932.1,1929.4,10.6206]
[1742232811630,1.3256,1930.6,1930.1,1.03626]
[1742232811830,7.6636,1930.6,1929.8,3.2078]
[1742232812035,5.1636,1930.6,1930.2,0.00778311]
[1742232812331,1.3256,1930.6,1930.2,0.00778311]
[1742232812539,3.2078,1930.3,1929.6,1.03656]
[1742232812737,4.08105596,1930.5,1929.5,9.926]
[1742232812738,3.2078,1930.1,1929.5,9.926]
[1742232813040,3.2078,1930.1,1929.6,7.00254]
[1742232813246,4.5334,1930.1,1929.4,13.1338]
[1742232813432,3.2078,1929.9,1929.1,3.2078]
[1742232813634,3.2078,1929.5,1928.8,3.2078]
[1742232813837,29.4855,1930.3,1929.3,0.00778311]
[1742232813838,1.3604,1929.4,1929.3,0.00778311]
[1742232814047,29.4855,1930.3,1929.3,0.00778311]
[1742232814048,5.848,1930.9,1930.8,1.03592]
[1742232814232,7.19283378,1930.9,1930.7,3.2078]
[1742232814543,3.2078,1932.1,1930.8,1.0]
[1742232814735,1.3604,1931.5,1931.2,3.2078]
[1742232815140,1.3604,1931.5,1931.4,3.2078]
[1742232815337,1.36811427,1931.5,1931.4,3.2078]
[1742232816145,0.00771427,1931.5,1931.4,4.2434]
[1742232816344,0.00771427,1931.5,1931.4,3.2078]
[1742232817344,0.00771427,1931.5,1931.4,5.6826]
[1742232817741,0.00771427,1931.5,1931.4,9.096]
[1742232818135,0.00771427,1931.5,1931.4,4.647]
[1742232818341,6.2135729,1933.2,1931.4,11.589]
[1742232818540,10.13429388,1934.7,1931.4,11.589]
[1742232818541,1.3319,1933.1,1932.5,3.2078]
[1742232818834,1.3319,1933.1,1932.8,3.2078]
[1742232819034,40.8,1933.0,1932.8,3.2078]
[1742232819335,1.3319,1933.1,1932.8,3.2078]
[1742232819540,1.3319,1933.1,1932.5,3.2078]
[1742232819541,1.3319,1932.9,1932.5,3.2078]
[1742232819741,1.03486,1932.8,1932.7,0.00776276]
[1742232820048,5.8459,1932.9,1932.7,0.00776276]
[1742232820240,1.3465,1932.8,1932.7,0.00776276]
[1742232820441,40.8,1933.1,1932.7,0.00776276]
[1742232820740,1.3465,1933.0,1932.7,0.00776276]
[1742232820946,1.03495,1932.6,1932.5,3.2078]
[1742232821341,2.5,1932.6,1932.3,3.2078]
[1742232821537,1.03506,1932.4,1932.3,3.2078]
[1742232821751,40.8,1932.4,1932.3,3.2078]
[1742232822252,40.8,1932.4,1932.2,0.00776276]
[1742232822549,1.3465,1932.3,1932.2,0.00776276]
[1742232823148,42.1465,1932.3,1932.2,0.00776276]
[1742232823345,43.18161,1932.3,1932.2,0.00776276]
[1742232823849,45.68161,1932.3,1932.2,0.00776276]
[1742232824240,43.18161,1932.3,1932.2,0.00776276]
[1742232824740,1.03534,1931.9,1931.7,3.2078]
[1742232824938,1.3735,1931.8,1931.7,3.2078]
[1742232825144,1.3735,1931.8,1931.5,4.5214]
[1742232825344,2.40891,1931.8,1931.5,4.5214]
[1742232825643,1.03546,1931.7,1931.5,4.5214]
[1742232825844,1.3735,1931.6,1931.5,3.2078]
[1742232826151,0.00776276,1931.8,1931.6,1.03549]
[1742232826349,0.00776276,1931.8,1931.7,7.7048]
[1742232826545,2.37044,1932.3,1931.7,8.74021]
[1742232826746,1.03517,1932.2,1931.9,3.2078]
[1742232826948,1.03523,1932.1,1931.9,3.2078]
[1742232827338,2.37057,1932.0,1931.9,3.2078]
[1742232827539,1.3353,1932.0,1931.9,3.2078]
[1742232828153,1.04291496,1932.1,1931.9,3.2078]
[1742232828347,0.00769496,1932.1,1931.9,3.2078]
[1742232828655,2.37824496,1932.1,1931.9,3.2078]
[1742232828950,1.03527,1932.0,1931.9,3.2078]
[1742232829157,1.3566,1932.0,1931.9,3.2078]
[1742232829355,2.39187,1932.0,1931.9,3.2078]
[1742232829652,1.3566,1932.0,1931.6,3.2078]
[1742232829845,5.8256,1932.0,1931.6,3.2078]
[1742232830044,1.03541,1931.8,1931.6,3.2078]
[1742232830251,1.3566,1931.7,1931.6,3.2078]
[1742232830556,2.39204,1931.7,1931.6,3.2078]
[1742232830955,1.3566,1931.7,1931.6,3.2078]
[1742232831153,2.39204,1931.7,1931.6,3.2078]
[1742232832245,3.2078,1932.0,1931.4,3.21556276]
[1742232832446,0.00769496,1932.1,1931.5,4.5461]
[1742232832751,1.03541,1931.8,1931.5,4.5461]
[1742232832957,1.03538,1931.8,1931.5,4.5461]
[1742232833254,0.00769496,1932.1,1931.7,3.2078]
[1742232833454,0.00769496,1932.1,1931.9,3.2078]
[1742232833656,0.00769496,1932.1,1932.0,1.3383]
[1742232834057,1.04291496,1932.1,1932.0,1.3383]
[1742232834250,1.03527,1932.0,1931.6,7.6528]
[1742232834447,1.38639496,1932.1,1931.8,3.2078]
[1742232834648,2.41403,1931.9,1931.7,1.3383]
[1742232834853,1.03538,1931.8,1931.7,1.3383]
[1742232835054,2.41408,1931.8,1931.6,3.2078]
[1742232835353,2.41412,1931.8,1931.6,3.2078]
[1742232835553,1.3787,1931.8,1931.6,3.2078]
[1742232835756,1.3787,1931.8,1931.7,1.3551]
[1742232836254,4.438,1932.0,1931.7,1.3551]
[1742232836458,1.3073,1931.9,1931.7,1.3551]
[1742232836658,3.21549496,1932.1,1931.7,1.3551]
[1742232836849,4.52279496,1932.1,1931.7,2.39051]
[1742232837050,1.31499496,1932.1,1931.8,3.2078]
[1742232837359,2.35022496,1932.1,1931.9,1.3551]
[1742232837752,1.03527,1932.0,1931.9,1.3551]
[1742232837953,2.34257,1932.0,1931.9,1.3551]
[1742232838558,1.3073,1932.0,1931.6,3.2078]
[1742232838755,1.03544,1931.7,1931.6,1.4409]
[1742232838956,4.5151,1932.0,1931.4,9.18156276]
[1742232838957,1.03551,1931.6,1931.4,5.97376276]
[1742232839152,1.03528,1932.0,1931.7,1.03539]
[1742232839366,0.00769496,1932.1,1931.8,4.6487]
[1742232839555,0.00769496,1932.1,1932.0,4.24307]
[1742232839851,0.00769496,1932.1,1932.0,3.2078]
[1742232840051,0.00769496,1932.1,1932.0,4.6487]
[1742232840255,0.00769496,1932.1,1932.0,5.68397]
[1742232840968,0.00769496,1932.1,1932.0,4.6487]
[1742232841259,3.2078,1933.2,1932.0,13.1147]
[1742232841564,1.0348,1932.9,1932.6,4.24274]
[1742232841766,40.8,1932.9,1932.4,3.2078]
[1742232842061,1.4056,1932.8,1932.3,1.3759]
[1742232842467,1.4056,1932.8,1932.4,0.00776276]
[1742232842652,1.03499,1932.6,1932.4,0.00776276]
[1742232842857,1.03511,1932.3,1932.2,3.2078]
[1742232843056,1.03508,1932.4,1932.2,3.2078]
[1742232843263,1.4056,1932.3,1932.0,3.2078]
[1742232843460,1.4056,1932.3,1932.0,4.24304]
[1742232843667,1.4056,1932.3,1932.2,4.24297]
[1742232844065,5.48906,1932.5,1932.2,4.24297]
[1742232844273,6.85880276,1932.7,1932.4,3.2078]
[1742232844569,6.85881276,1932.7,1932.4,3.2078]
[1742232844769,1.03505,1932.5,1932.2,3.9197]
[1742232845067,5.82386276,1932.7,1932.1,0.00776276]
[1742232845267,3.2078,1932.6,1932.1,0.00776276]
[1742232845470,1.3611,1932.5,1932.1,0.00776276]
[1742232845663,1.03516,1932.3,1932.1,1.34106276]
[1742232845862,2.39627,1932.2,1932.1,1.34106276]
[1742232846273,2.39627,1932.2,1932.1,0.00776276]
[1742232847360,5.79529,1932.6,1932.1,0.00776276]
[1742232847563,1.03517,1932.2,1932.1,0.00776276]
[1742232847963,5.47517,1932.2,1932.1,0.00776276]
[1742232848158,6.94,1932.2,1931.8,3.2078]
[1742232848365,1.0353,1932.0,1931.8,4.6502]
[1742232848564,5.851,1932.4,1931.8,4.6502]
[1742232848765,1.334,1932.2,1932.0,3.2078]
[1742232848974,1.03522,1932.1,1932.0,3.2078]
[1742232849471,2.3692,1932.2,1931.9,5.69328276]
[1742232849865,1.03527,1932.0,1931.9,4.65796276]
[1742232850360,1.03526,1932.1,1931.9,4.65796276]
[1742232850572,1.334,1932.2,1931.9,4.65796276]
[1742232850767,1.03526,1932.1,1931.9,4.65796276]
[1742232850967,1.334,1932.2,1931.9,4.65796276]
[1742232851171,1.03527,1932.1,1931.9,4.65796276]
[1742232851361,1.03524,1932.1,1931.9,4.65796276]
[1742232851771,2.3692,1932.2,1931.9,5.69328276]
[1742232852377,1.03524,1932.1,1931.9,4.65796276]
[1742232852575,1.03527,1932.0,1931.9,3.21556276]
[1742232853067,1.03515,1932.3,1932.0,1.03527]
[1742232853270,1.03515,1932.3,1932.1,1.3296]
[1742232853271,1.3767,1932.3,1932.1,1.3296]
[1742232853467,1.3767,1932.3,1932.1,4.5374]
[1742232854073,1.03517,1932.2,1932.1,1.3296]
[1742232854268,2.41185,1932.3,1932.1,1.3296]
[1742232854474,1.03518,1932.2,1931.9,4.25086276]
[1742232854668,1.3767,1932.1,1932.0,2.36487]
[1742232854865,0.00776276,1932.7,1932.0,8.9244]
[1742232855060,1.38446276,1932.7,1932.6,1.03495]
[1742232855267,1.3935,1933.2,1932.6,1.3296]
[1742232855573,1.03474,1933.0,1932.8,3.2078]
[1742232855768,1.3767,1932.9,1932.8,4.5374]
[1742232855965,2.41149,1932.9,1932.8,4.5374]
[1742232856165,3.2078,1933.8,1932.8,4.5374]
[1742232856469,1.3671,1933.3,1933.1,3.2078]
[1742232856869,1.03463,1933.2,1933.1,3.2078]
[1742232857269,1.03463,1933.2,1933.0,1.38826276]
[1742232857270,1.03465,1933.2,1933.0,1.38826276]
[1742232857466,1.3671,1933.2,1933.0,1.38826276]
[1742232857668,1.04232276,1933.4,1933.1,3.2078]
[1742232857873,1.03458,1933.3,1933.2,1.3805]
[1742232858072,1.3671,1933.3,1933.2,1.3805]
[1742232858275,1.03458,1933.3,1933.2,1.3805]
[1742232858476,1.3671,1933.3,1933.2,1.3805]
[1742232858972,2.40168,1933.3,1933.2,1.3805]
[1742232859176,1.03463,1933.2,1933.1,3.2078]
[1742232859373,1.03469,1933.1,1933.0,1.38406276]
[1742232859670,1.03469,1933.1,1933.0,0.00776276]
[1742232859873,35.1031,1933.1,1932.4,3.2078]
[1742232860070,35.1031,1933.1,1932.2,3.2078]
[1742232860071,2.58712,1932.8,1932.2,3.2078]
[1742232860276,46.6407,1932.7,1932.2,3.2078]
[1742232860467,1.03505,1932.5,1932.3,1.3763]
[1742232860773,1.3927,1932.4,1932.3,1.3763]
[1742232861075,2.42776,1932.4,1932.3,1.3763]
[1742232861375,1.3927,1932.4,1932.3,1.3763]
[1742232861570,45.236,1932.7,1932.3,1.3763]
[1742232861571,40.8,1932.7,1932.3,1.3763]
[1742232861765,4.434,1932.9,1932.5,3.2078]
[1742232861966,1.03495,1932.7,1932.6,1.3763]
[1742232862171,1.3927,1932.8,1932.6,1.3763]
[1742232862568,1.0349,1932.7,1932.6,1.3763]
[1742232862772,1.03495,1932.6,1932.5,3.2078]
[1742232862964,1.3927,1932.8,1932.5,3.2078]
[1742232863165,1.03493,1932.7,1932.5,3.2078]
[1742232863368,1.03493,1932.7,1932.6,1.3673]
[1742232863572,1.3927,1932.8,1932.3,3.2078]
[1742232863778,1.03506,1932.4,1932.3,3.2078]
[1742232864075,1.03511,1932.3,1932.2,1.37506276]
[1742232864469,2.43238,1932.4,1932.2,4.58286276]
[1742232864869,1.3973,1932.4,1932.2,4.58286276]
[1742232865066,1.03511,1932.3,1932.2,4.58286276]
[1742232865672,1.3973,1932.4,1932.2,4.58286276]
[1742232865874,2.4324,1932.4,1932.2,4.58286276]
[1742232866066,1.3973,1932.4,1932.2,4.58286276]
[1742232866472,40.8,1932.8,1932.2,4.58286276]
[1742232866680,1.03495,1932.6,1932.5,3.2078]
[1742232867082,1.03495,1932.6,1932.3,3.2078]
[1742232867380,4.403,1932.8,1932.4,1.4097]
[1742232867573,2.37238,1932.6,1932.4,1.4097]
[1742232868672,2.37238,1932.6,1932.5,3.2078]
[1742232869275,2.37235,1932.6,1932.5,3.2078]
[1742232869980,1.03501,1932.5,1932.4,1.4097]
[1742232870178,2.35181,1932.5,1932.4,1.4097]
[1742232870486,1.3168,1932.5,1932.4,1.4097]
[1742232871174,1.03492,1932.7,1932.4,2.44476]
[1742232871373,1.03492,1932.7,1932.5,3.2078]
[1742232871573,1.03492,1932.7,1932.6,1.3137]
[1742232871781,1.3168,1932.9,1932.6,1.3137]
[1742232871982,1.0349,1932.7,1932.6,1.3137]
[1742232872382,8.26584,1932.9,1932.4,0.684]
[1742232872685,1.03501,1932.5,1932.4,0.684]
[1742232873177,1.03506,1932.4,1932.3,7.5678]
[1742232873479,1.03506,1932.4,1932.3,3.2078]
[1742232873683,1.03506,1932.4,1932.3,4.5215]
[1742232874573,1.03506,1932.4,1932.3,3.2078]
[1742232875280,1.03511,1932.3,1932.2,1.45126276]
[1742232876285,1.03511,1932.3,1932.2,0.00776276]
[1742232876473,1.03533,1931.9,1931.8,0.0322]
[1742232876674,1.3614,1932.2,1931.8,0.0322]
[1742232876887,1.03526,1932.1,1931.9,3.2078]
[1742232877181,1.3614,1932.2,1932.0,1.4435]
[1742232877489,1.03522,1932.1,1932.0,1.4435]
[1742232877782,1.3614,1932.2,1932.0,1.4435]
[1742232878085,2.39657,1932.2,1932.1,3.2078]
[1742232878286,2.39657,1932.2,1932.0,2.1565]
[1742232878287,1.03522,1932.1,1932.0,2.1565]
[1742232878579,2.45182,1932.1,1932.0,1.4435]
[1742232878986,1.03527,1932.0,1931.9,0.00776276]
[1742232879185,2.45187,1932.0,1931.9,0.00776276]
[1742232879886,6.77687,1932.0,1931.9,0.00776276]
[1742232883087,6.74687,1932.0,1931.9,0.00776276]
[1742232884583,1.03533,1931.9,1931.8,0.0322]
[1742232884788,1.03549,1931.6,1931.5,3.2078]
[1742232885381,41.83549,1931.6,1931.5,3.2078]
[1742232885587,1.03554,1931.5,1931.4,1.3373]
[1742232885790,1.0356,1931.4,1931.3,3.2078]
[1742232885979,5.31164,1931.4,1931.3,0.00776276]
[1742232887181,5.98254,1931.4,1931.3,0.00776276]
[1742232888387,6.66394,1931.4,1931.3,0.00776276]
[1742232890192,1.03581,1931.0,1930.9,1.3964]
[1742232890391,5.28179,1931.1,1930.9,1.3964]
[1742232890594,1.3506,1931.0,1930.9,1.3964]
[1742232890884,1.3506,1931.0,1930.9,4.6042]
[1742232890885,2.38641,1931.0,1930.9,4.6042]
[1742232891083,2.38641,1931.0,1930.7,0.6715]
[1742232891084,1.03592,1930.8,1930.7,0.6715]
[1742232891279,1.03586,1930.9,1930.8,0.00776276]
[1742232891689,1.3506,1931.0,1930.8,0.00776276]
[1742232891895,2.38644,1931.0,1930.9,3.2078]
[1742232892190,2.38641,1931.0,1930.9,3.2078]
[1742232892387,1.3506,1931.0,1930.9,3.2078]
[1742232892595,4.24576276,1931.1,1930.9,4.24363]
[1742232892793,4.24576276,1931.1,1931.0,2.105]
[1742232893294,5.67726276,1931.1,1931.0,2.105]
[1742232893487,6.71302276,1931.1,1931.0,2.105]
[1742232893693,2.47502276,1931.1,1931.0,2.105]
[1742232894286,1.03581,1931.0,1930.8,0.00776276]
[1742232894493,1.4315,1930.9,1930.8,4.66276276]
[1742232895090,1.4315,1930.9,1930.8,5.69868276]
[1742232895298,4.22876276,1931.1,1930.8,4.66276276]
[1742232895493,5.26454276,1931.1,1931.0,3.2078]
[1742232895689,4.22876276,1931.1,1931.0,3.2078]
[1742232895890,4.22876276,1931.1,1931.0,4.24361]
[1742232896192,4.22876276,1931.1,1931.0,5.62391]
[1742232896398,0.00776276,1931.1,1931.0,5.62391]
[1742232896692,0.00776276,1931.1,1931.0,4.5881]
[1742232896886,1.37506276,1931.1,1931.0,4.5881]
[1742232898800,1.03582,1931.0,1930.8,3.21556276]
[1742232899103,1.4338,1930.9,1930.8,3.21556276]
[1742232899497,1.4338,1930.9,1930.8,4.25148276]
[1742232899691,0.00776276,1931.1,1930.9,1.03584]
[1742232899897,0.00776276,1931.1,1931.0,3.2078]
[1742232900098,1.44156276,1931.1,1931.0,3.2078]
[1742232900293,0.00776276,1931.1,1931.0,4.24361]
[1742232900500,40.8,1931.6,1931.0,3.2078]
[1742232900692,40.8,1931.6,1931.5,3.2078]
[1742232900693,1.4338,1931.6,1931.5,3.2078]
[1742232900899,2.46929,1931.6,1931.5,3.2078]
[1742232901100,43.26929,1931.6,1931.5,3.2078]
[1742232901997,42.2338,1931.6,1931.2,3.2078]
[1742232902203,1.03565,1931.3,1931.2,3.2078]
[1742232902503,5.22065,1931.3,1931.2,3.2078]
[1742232903101,4.185,1931.3,1931.2,3.2078]
[1742232903303,5.22065,1931.3,1931.2,3.2078]
[1742232903603,5.6015,1931.3,1931.2,3.2078]
[1742232904200,5.6015,1931.3,1931.0,3.2078]
[1742232904409,1.03576,1931.1,1931.0,3.2078]
[1742232906105,1.03586,1930.9,1930.8,3.21556276]
[1742232906302,4.161,1930.9,1930.4,0.6801]
[1742232906610,1.03599,1930.7,1930.4,0.6801]
[1742232906809,2.34663,1930.6,1930.4,0.6801]
[1742232907011,1.3106,1930.6,1930.4,0.6801]
[1742232907205,6.50167,1930.6,1930.4,0.6801]
[1742232907405,1.03613,1930.5,1930.3,3.2078]
[1742232907610,1.0361,1930.5,1930.3,0.00776276]
[1742232907806,1.3106,1930.4,1930.3,0.00776276]
[1742232908008,4.155,1930.6,1930.3,0.00776276]
[1742232908208,4.155,1930.6,1930.4,3.2078]
[1742232908209,5.5436,1930.6,1930.4,3.2078]
[1742232908613,6.57964,1930.6,1930.4,3.2078]
[1742232908912,5.5436,1930.6,1930.4,3.2078]
[1742232909115,5.5436,1930.6,1930.3,0.00776276]
[1742232909116,6.57966,1930.6,1930.3,0.00776276]
[1742232909312,1.03613,1930.4,1930.3,0.00776276]
[1742232909817,1.3901,1930.5,1930.3,0.00776276]
[1742232910010,1.3886,1930.4,1930.3,0.00776276]
[1742232910414,42.1886,1930.4,1930.3,0.00776276]
[1742232911310,40.8,1930.4,1930.3,0.00776276]
[1742232911620,1.3533,1930.6,1930.3,0.00776276]
[1742232911810,1.3533,1930.6,1930.5,3.2078]
[1742232912007,1.3533,1930.6,1930.3,3.21556276]
[1742232912411,4.138,1930.5,1930.3,3.21556276]
[1742232912617,1.3533,1930.4,1930.3,3.21556276]
[1742232912813,1.3533,1930.5,1930.3,3.21556276]
[1742232913623,1.03613,1930.4,1930.3,3.21556276]
[1742232914015,2.0612,1930.5,1930.3,3.21556276]
[1742232914316,1.3533,1930.5,1930.3,3.21556276]
[1742232914513,4.13776276,1930.7,1930.3,4.25174276]
[1742232914706,6.59394276,1930.7,1930.5,3.2078]
[1742232914915,5.55796276,1930.7,1930.5,3.2078]
[1742232915117,1.42796276,1930.7,1930.5,3.9047]
[1742232915318,0.00776276,1930.7,1930.5,3.9047]
[1742232915517,0.00776276,1930.7,1930.5,4.94074]
[1742232915717,0.00776276,1930.7,1930.5,9.06774]
[1742232915913,0.00776276,1930.7,1930.6,1.3319]
[1742232916820,1.04373276,1930.7,1930.6,1.3319]
[1742232917013,0.00776276,1930.7,1930.3,3.21556276]